Cogmind - Beta 13 @@@ ROGUE MODE // 2024.03.09 @ 13:39:22 Player: youngster Result: Destroyed by KW-PG1(R) with Subdweller Machine Gun Performance ------------- Evolutions (0) 0 Regions Visited (3) 600 Robots Destroyed (40) 200 Value Destroyed (823) 823 Prototype IDs (2) 40 Alien Tech Used (0) 0 Bonus (33) 33 TOTAL SCORE: 1696 Bonus ------- Follower Combat Kills 81 Friendly Fire -48 Cogmind --------- Core Integrity 0/250 Matter 223/300 Energy 250/250 System Corruption 0% Temperature Cool (0) Movement Rolling (145) Ox3 Location -10/Subcaves Parts ------- > --- POWER (1) -------- Ion Engine > --- PROPULSION (2) --- Compact Wheel > --- UTILITY (2) ------ High-capacity Storage Unit Terrain Scanner > --- WEAPON (2) ------- Light Cannon Light Cannon > --- INVENTORY (20) --- Subdweller Power Source Huge Storage Unit High-capacity Matter Pod (200) Improved Terrain Scanner Cobbler Unit Beam Cannon Subdweller Beam Cannon Light Assault Rifle Battle Rifle Battle Rifle Subdweller Machine Gun Subdweller Machine Gun Light Cannon Light Cannon Grenade Launcher Grenade Launcher Mining Laser Flamer Peak State ------------ > --- POWER ------------ Ion Engine > --- PROPULSION ------- Light Treads Light Treads > --- UTILITY ---------- High-capacity Storage Unit Light Armor Plating > --- WEAPON ----------- EM Pulse Gun Light Assault Rifle > --- INVENTORY -------- Light Ion Engine Compact Wheel Huge Storage Unit High-capacity Matter Pod Improved Terrain Scanner Beam Cannon Battle Rifle Subdweller Machine Gun Light Cannon Light Cannon Light Cannon Light Cannon Grenade Launcher Grenade Launcher Mining Laser Flamer [Rating: 9] Favorites ----------- Power Ion Engine Engine Ion Engine Propulsion Light Treads Treads Light Treads Wheel Compact Wheel Utility High-capacity Storage Unit Device Seismic Detector Storage High-capacity Storage Unit Protection Light Armor Plating Weapon EM Pulse Gun Energy Gun EM Pulse Gun Ballistic Gun Light Assault Rifle Ballistic Cannon Light Cannon Launcher Grenade Launcher Build | -11 -10 -10 -10 ------- Run | Yrd Mat Min Sub Slots Evolved . | . . . . Power . | . . . . Propulsion . | . . . . Utility . | . . . . Weapon . | . . . . Parts Attached 43 | 8 20 7 8 Power 1 | 1 . . . Engine 1 | 1 . . . Core . | . . . . Reactor . | . . . . Propulsion 3 | 2 . . 1 Treads 2 | 2 . . . Leg . | . . . . Wheel 1 | . . . 1 Hover . | . . . . Flight . | . . . . Utility 7 | 2 2 2 1 Device 3 | 1 . 1 1 Storage 2 | 1 1 . . Processor . | . . . . Hackware . | . . . . Protection 2 | . 1 1 . Artifact . | . . . . Weapon 32 | 3 18 5 6 Energy Gun 14 | 2 9 2 1 Energy Cannon . | . . . . Ballistic Gun 3 | 1 . 1 1 Ballistic Cannon 3 | . . 1 2 Launcher 12 | . 9 1 2 Special Weapon . | . . . . Impact Weapon . | . . . . Slashing Weapon . | . . . . Piercing Weapon . | . . . . Special Melee Weapon . | . . . . Unidentified Prototypes . | . . . . Parts Lost 6 | . . 2 4 Power . | . . . . Propulsion 2 | . . . 2 Utility 2 | . . 1 1 Weapon 2 | . . 1 1 Highest Loss Streak 2 | . . 1 2 To Critical Strikes . | . . . . Average Slot Usage (%) 98 | . 100 100 92 Engine 14 | . 14 14 14 Treads 26 | . 28 28 22 Device 10 | . 12 10 7 Storage 14 | . 14 14 14 Protection 2 | . 1 3 4 Energy Gun 23 | . 27 25 11 Ballistic Gun 2 | . . 1 11 Ballistic Cannon 1 | . . 1 3 Naked Turns . | . . . . Heaviest Build 53 | 15 53 53 52 Greatest Support 40 | 40 40 40 40 Greatest Overweight (x) 15 | 3 1 1 15 Average Overweight (x) . | . . 1 1 Largest Inventory Capacity 20 | 8 20 20 20 Average Capacity 19 | 7 19 20 20 Most Carried 20 | 4 14 14 20 Average Carried 12 | 3 10 13 16 Final Capacity 20 | 8 20 20 20 Final Carried 19 | 4 14 13 19 Class Distribution -------------------- 99% | Mutant Dominant Class ---------------- Mutant | -10/Materials Mutant | -10/Mines Mutant | -10/Subcaves Resources | -11 -10 -10 -10 ----------- Run | Yrd Mat Min Sub Matter Collected 1168 | 265 435 280 188 Remotely . | . . . . Salvage Created 968 | 102 450 218 198 Parts 77 | 15 41 8 13 Haulers Intercepted 2 | . 2 . . Recyclers Shooed 2 | 1 . 1 . Parts Field Recycled . | . . . . Retrieved Matter . | . . . . Parts Self-Destructed 4 | . . . 4 Prevented . | . . . . Kills | -11 -10 -10 -10 ------- Run | Yrd Mat Min Sub Combat Hostiles Destroyed 25 | . 16 2 7 Guns 3 | . 2 1 . Cannons 2 | . . . 2 AOE 19 | . 14 . 5 Classes Destroyed 10 | 1 5 1 3 Worker 1 | . 1 . . Tunneler 7 | 5 1 1 . Hauler 2 | . 2 . . Recycler 1 | . . 1 . Operator 1 | . . . 1 Watcher 3 | . 3 . . Swarmer 9 | . 6 . 3 Grunt 14 | . 10 2 2 Cobbler 1 | . . . 1 Subdweller 2 | . . . 2 Best Kill Streak 6 | 2 6 2 5 Combat Bots Only 5 | . 4 2 5 Max Kills in Single Turn 4 | 1 2 1 4 Gunslinging . | . . . . Exploded 4 | . 2 . 4 Melee . | . . . . Uniques/NPCs Destroyed . | . . . . Combat | -11 -10 -10 -10 -------- Run | Yrd Mat Min Sub Hostile Shots Fired 102 | . 39 23 40 Missed 30 | . 16 5 9 Damage Taken 1163 | . 323 245 595 Core 270 | . 75 26 169 Absorbed by Shields . | . . . . Core Remaining (%) 100 | 100 . . . Volleys Fired 82 | 11 24 21 26 Largest 2 | 2 2 2 2 Hottest 80 | 80 80 80 70 Shots Fired 155 | 22 39 42 52 Gun 96 | 22 20 40 14 Cannon 34 | . . 2 32 Launcher 25 | . 19 . 6 Special . | . . . . Kinetic 51 | . . 12 39 Thermal . | . . . . Explosive 25 | . 19 . 6 Electromagnetic 79 | 22 20 30 7 Robot Hit Streak 21 | 5 8 5 21 Robot Miss Streak 4 | 2 3 4 2 Penetration Max . | . . . . Secondary Targets . | . . . . Shots Hit Robots 98 | 13 20 23 42 Core Hits 68 | 5 36 10 17 Critical Kills . | . . . . Critical Parts Destroyed . | . . . . Critical Strikes 2 | 1 1 . . Corrupt 2 | 1 1 . . Melee Attacks . | . . . . Impact . | . . . . Slashing . | . . . . Piercing . | . . . . Sneak Attacks . | . . . . Combat Hostiles . | . . . . Follow-up Attacks . | . . . . Damage Inflicted 2954 | 212 1403 388 951 Guns 746 | 151 209 282 104 Cannons 508 | . . . 508 Explosions 1638 | 61 1173 65 339 Melee . | . . . . Ramming 62 | . 21 41 . Kinetic 585 | . . 48 537 Thermal 212 | 61 24 65 62 Explosive 1426 | . 1149 . 277 Electromagnetic 669 | 151 209 234 75 Impact . | . . . . Slashing . | . . . . Piercing . | . . . . Highest Corruption . | . . . . Average Corruption . | . . . . Corruption Purged . | . . . . Corruption Blocked . | . . . . Overload Shots . | . . . . Overflow Damage 32 | . . . 32 Projectiles . | . . . . Explosions 32 | . . . 32 Melee . | . . . . Knockbacks 9 | . . 1 8 Impact 1 | . . 1 . Kinetic 8 | . . . 8 Secondary . | . . . . Self-Inflicted Damage 143 | . 91 . 52 Shots 7 | . 5 . 2 Rammed 11 | . 3 8 . Targets Rammed 11 | . 3 8 . Kicked . | . . . . Crushed . | . . . . Highest Temperature 324 | 72 54 324 . Average Temperature 62 | 28 19 112 . Received Heat Transfer 291 | . 93 147 51 Effects 1 | . . 1 . Matter Decay 1 | . . 1 . Siege Activations . | . . . . Robots Corrupted 1 | . . 1 . Combat Hostiles 1 | . . 1 . Parts Fried 1 | . 1 . . Impact Corruptions . | . . . . Robots Melted . | . . . . Combat Hostiles . | . . . . Parts Melted . | . . . . Heat Transferred 250 | 50 50 50 100 Parts Sabotaged . | . . . . Parts Stolen . | . . . . Parts Stripped . | . . . . Power Chain Reactions 5 | 2 1 1 1 Alert | -11 -10 -10 -10 ------- Run | Yrd Mat Min Sub Peak Influence 293 | 25 293 121 . Initial 81 | . 16 81 . Average 84 | 10 121 49 . Maximum Alert Level 1 | . 1 . . Low Security (%) 92 | 100 86 100 . Level 1 7 | . 13 . . Level 2 . | . . . . Level 3 . | . . . . Level 4 . | . . . . Level 5 . | . . . . High Security . | . . . . Max Security . | . . . . Squads Dispatched 3 | . 3 . . Investigation 2 | . 2 . . Extermination . | . . . . Reinforcement 1 | . 1 . . Assault . | . . . . Garrison . | . . . . Intercept . | . . . . Searches Triggered . | . . . . Construction Impeded . | . . . . Haulers Reinforced . | . . . . Active Scanning Responses . | . . . . Cargo Convoy Interrupts . | . . . . Stealth | -11 -10 -10 -10 --------- Run | Yrd Mat Min Sub Distress Signals 2 | . 2 . . Communications Jammed . | . . . . Distress Signals . | . . . . Times Spotted 35 | . 21 5 9 Peak Tracking Total 5 | . 3 3 5 Tactical Retreats 2 | . 1 1 . Traps | -11 -10 -10 -10 ------- Run | Yrd Mat Min Sub Traps Triggered 1 | . 1 . . Indirectly . | . . . . Trap Hack Attempts . | . . . . Triggered . | . . . . Disarmed . | . . . . Reprogrammed . | . . . . Reused . | . . . . Traps Extracted . | . . . . Installed . | . . . . Triggered . | . . . . Machines | -11 -10 -10 -10 ---------- Run | Yrd Mat Min Sub Machines Disabled 3 | . 3 . . Max in Single Turn 2 | . 2 . . Machines Repaired . | . . . . Machines Dismantled . | . . . . Machines Sabotaged . | . . . . Overloaded Fab Kills . | . . . . Hacking | -11 -10 -10 -10 --------- Run | Yrd Mat Min Sub Machines Accessed 9 | . 9 . . Terminals 6 | . 6 . . Fabricators . | . . . . Repair Stations 1 | . 1 . . Recycling Units 2 | . 2 . . Scanalyzers . | . . . . Garrison Access . | . . . . Total Hacks 22 | . 22 . . Successful 13 | . 13 . . Failed 9 | . 9 . . Catastrophic 1 | . 1 . . Database Lockouts . | . . . . Manual 11 | . 11 . . Terminals 17 | . 17 . . Fabricators . | . . . . Repair Stations 3 | . 3 . . Recycling Units 2 | . 2 . . Scanalyzers . | . . . . Garrison Access . | . . . . Terminal Hacks 6 | . 6 . . Robot Schematic 1 | . 1 . . Robot Analysis 1 | . 1 . . Prototype ID Bank 1 | . 1 . . Terminal Index 1 | . 1 . . Locate Traps 1 | . 1 . . Hauler Manifests 1 | . 1 . . Fabricator Hacks . | . . . . Repair Station Hacks 1 | . 1 . . Scan Component 1 | . 1 . . Recycling Unit Hacks . | . . . . Scanalyzer . | . . . . Garrison Access Hacks . | . . . . Unauthorized Hacks 6 | . 6 . . Terminals 4 | . 4 . . Assimilate 1 | . 1 . . Botnet 2 | . 2 . . Operators 1 | . 1 . . Fabricators . | . . . . Repair Stations . | . . . . Recycling Units 2 | . 2 . . Tunnel 2 | . 2 . . Scanalyzers . | . . . . Garrison Access . | . . . . Data Cores Recovered . | . . . . Used . | . . . . Hacking Detections 7 | . 7 . . Full Trace Events 1 | . 1 . . Feedback Events . | . . . . Feedback Blocked . | . . . . Robot Schematics Acquired 1 | . 1 . . Robots Built . | . . . . Authchips . | . . . . Time . | . . . . Total Robot Build Rating . | . . . . Part Schematics Acquired . | . . . . Parts Built . | . . . . Authchips . | . . . . Time . | . . . . Total Part Build Rating . | . . . . Parts Repaired . | . . . . Time . | . . . . Parts Recycled . | . . . . Recycled Matter . | . . . . Retrieved Matter . | . . . . Retrieved Components . | . . . . Parts Scanalyzed . | . . . . Part Schematics Acquired . | . . . . Parts Damaged . | . . . . Bothacking | -11 -10 -10 -10 ------------ Run | Yrd Mat Min Sub Used RIF Installer . | . . . . Robots Hacked . | . . . . Non-combat . | . . . . Combat . | . . . . Robot Hacks Applied . | . . . . Relay Couplers Released . | . . . . Fabnet Peak Effective % . | . . . . Robots Rewired . | . . . . Allies Hacked . | . . . . Hacks Repelled . | . . . . Allies | -11 -10 -10 -10 -------- Run | Yrd Mat Min Sub Total Allies 5 | . 1 4 . Largest Group 4 | . 1 4 2 Highest-Rated Group 50 | . 10 50 40 Highest-Rated Ally 31 | . 10 31 31 Total Orders 9 | . 4 5 . STAY 4 | . 2 2 . FOLLOW 5 | . 2 3 . Ally Attacks 32 | . . 32 . Total Damage 277 | . . 277 . Kills 5 | . . 5 . Allies Corrupted . | . . . . Allies Melted . | . . . . Intel | -11 -10 -10 -10 ------- Run | Yrd Mat Min Sub Robot Analysis Total 1 | . 1 . . Derelict Logs Recovered 1 | . . 1 . Drone Launches . | . . . . Drone Recoveries . | . . . . Exploration | -11 -10 -10 -10 ------------- Run | Yrd Mat Min Sub Turns Passed 4338 | 176 1816 1546 800 Spaces Moved 1683 | 81 722 599 281 Core 6 | 4 . . 2 Treads 1650 | 77 722 599 252 Legs . | . . . . Wheels 27 | . . . 27 Hover . | . . . . Flight . | . . . . Fastest Speed 50 | 50 160 240 145 Average Speed 233 | 157 234 240 241 Slowest Speed 800 | 200 240 240 800 Overloaded Moves . | . . . . Propulsion Burnouts . | . . . . Robots Hopped . | . . . . Cave-ins Triggered . | . . . . Exploration Rate (%) 58 | 6 99 99 28 Regions Visited 3 Branch Regions 2 Pre-discovered Areas 3 | . 2 1 . Known Exits Taken . | . . . . Unknown Exits Taken 3 | 1 1 1 . Scrap Searched 4 | . . 1 3 Spaces Dug 28 | . 18 . 10 Terrain Destroyed 135 | 9 88 10 28 Melee . | . . . . Projectile . | . . . . AOE 135 | 9 88 10 28 Terrain Rammed . | . . . . Walls Destroyed . | . . . . Machines Disabled . | . . . . Actions | -11 -10 -10 -10 --------- Run | Yrd Mat Min Sub Total 1902 | 103 793 655 351 Wait 61 | . 14 20 27 Move 1680 | 80 721 598 281 Hop . | . . . . Pick Up 23 | 4 10 1 8 Fast Attach 9 | 7 1 . 1 Attach 4 | . . 2 2 Detach . | . . . . Swap 30 | 1 19 5 5 Drop 2 | . 1 . 1 Fire 82 | 11 24 21 26 Melee . | . . . . Ram . | . . . . Kick . | . . . . Crush 11 | . 3 8 . Escape Stasis . | . . . . Rewire . | . . . . Trap . | . . . . Miscellaneous . | . . . . Route ------- -11/Scrapyard -10/Materials (discovered 5 exits: [*Mat x3] / [*Min x2]) -10/Mines (discovered 4 exits: [*Mat x2] / [*Exi] / [*Sub]) -10/Subcaves History --------- Turn | Location | Event 14 | -11/Scrapyard | Discovered new exit (range 16) 177 | -11/Scrapyard | Entered Materials 303 | -10/Materials | Build established: Mutant 560 | -10/Materials | Discovered new exit (range 8) 731 | -10/Materials | Discovered new exit (range 11) 1137 | -10/Materials | Discovered new exit (range 16) 1382 | -10/Materials | Discovered new exit (range 15) 1651 | -10/Materials | Discovered new exit (range 12) 1993 | -10/Materials | Entered Mines 1993 | -10/Mines | Accompanied by 1 ally 2126 | -10/Mines | Assisted by bots powering up and referring to "LRC-V3" 2496 | -10/Mines | Discovered new exit (range 9) 2825 | -10/Mines | Discovered new exit (range 16) 2970 | -10/Mines | Deemed a non-threat by the Exiles lab entrance 2970 | -10/Mines | Discovered new exit (range 5) 3003 | -10/Mines | Discovered new exit (range 15) 3183 | -10/Mines | Learned location of Zion (-7) 3329 | -10/Mines | Received a Mining Laser from a helpful Derelict 3539 | -10/Mines | Entered Subcaves 3539 | -10/Subcaves | Accompanied by 2 allies 4215 | -10/Subcaves | Core integrity fell below 50% 4253 | -10/Subcaves | Core integrity fell below 20% 4339 | -10/Subcaves | Destroyed by KW-PG1(R) with Subdweller Machine Gun Last Messages --------------- 04138_ Acquired Corrupted Cobbler Unit. 04139_ Acquired 44 matter. 04159_ Acquired Sub. Beam Cannon. 04207_ EM Pulse Gun destroyed. 04209_ Lgt. Treads destroyed. 04238_ 25-CYP(R) knocked back. 04241_ 25-CYP(R) destroyed. 04244_ LX-KOR(R) knocked back. 04251_ LX-KOR(R) affixes Scrap Shield Fragment to Scrap Shield. 04256_ LX-KOR(R) destroyed. 04262_ Acquired 61 matter. 04263_ Acquired 8 matter. 04266_ Acquired Sub. Power Source. 04267_ Dropped Lgt. Ion Engine. 04269_ Acquired Sub. Machine Gun. 04270_ Acquired 4 matter. 04299_ KW-PG1(R) knocked back. 04305_ CY-CDF(R) knocked back. 04332_ KW-PG1(R) knocked back. Map ----- +----------------------------------------------------+ | ?????????????????????????????????????????????????? | | ?????????????????????????????????????????????????? | | ?????????????????????????????????????????????????? | | ?????????????????????????????????????????????????? | | ?????????????????????????????????????????????????? | | ?????????????????????????????????????????????????? | | ?????????????????????????????????????????????????? | | ?????????????????????????????????????????????????? | | ?????????????????????????????????????????????????? | | ?????????????????????????????????????????????????? | | ?????????#???????????????????????????????????????? | | ?????#???????????????????????????????????????????? | | ????#????#???????????????????????????????????????? | | ?####??????????????????#???????#?????????????????? | | ## ##???????????????????????????????????????????? | | #???#??????#??#????#??????????? ????????????? | | #??##?????%?????##?????????#????????????????? | | #???? ??????? ""?? ?"???????##???????????????? | | ####?### ??? ???? ""?" ??????????????????????????? | | ###??# ?????????# #" ??????????????""""???????? | | #### ??????#??# # ???"????????? "???????? | | ## ??"?????????" "#???#?? ???? ????????? | | # ????###?? ?# "####??????? #?????????? | | #? ##### ## ???#" # ##?????# #??? ????? | | #?# ### ??#??#" #????# ### ????? | | ### ?????#?## @ R###### ???? | | ## ##??????#??#### ## % % ???? | | ##???###????# " # #????????? | | ###?##?????#"% ###?????????? | | | #????????## % #??#?#??????? | | #?##??????### ##???#??????? | | ## &##?##?######?## ##?####????? | | #### ### ######### #####% ## # ???? | | ???# #?## ### ## # ## ?? | | ??## ?## # !&& [ ?? | | ???## ####### ! & ### ## # ???? | | ????###?????## ## * ####?#????????? | | ???????#?????## #### % ## ###???????????? | | ??????????????## ##?# ## ## ##??????#??????? | | ??????##???#???# ##??# ####?##??????????????? | | ???????????????# ##?### ##????????#???????????? | | ?????????????### #???#" #####???????##????????? | | ???????????### ##??#"% #### #??????????? | | ????????????# #### #????????? | | ???????#????## % #???????? | | ?????????????# ????????? | | ??????????# ## ## # ????????? | | ??????????## #?# #### ### ### ?????????? | | ???????????# #??## # #??####?????????????? | | ??????????# #????# #?????#?????????????? | +----------------------------------------------------+ Best States ------------- Heat Dissipation 25 Energy Generation 10 Energy Capacity 250 Matter Stores 300 Matter Capacity 300 Sight Range 16 Terrain Scan Range 14 Terrain Scan Density 10 Armor Coverage 150 Evasion (%) 40 Recoil Reduction 2 Item Schematics ----------------- None Robot Schematics ------------------ M-13 Machinist | -10/Materials | Hacked Fabricated ------------ Nothing Alien Tech Used ----------------- None Achievements -------------- None Challenges ------------ None Game ------ Seed WeaponsBiometalFacilitator Manual? 0 Play Time 00:19:40 Cumulative 430.2 hours Start 2024.03.09 @ 13:22:08 End 2024.03.09 @ 13:39:22 Sessions 1 Manual Loads 0 Difficulty Rogue Special Mode None Game No. 197 Rogue 197 Adventurer 0 Explorer 0 Win Type - Total 10 Types 7/0/1/1/0/0/0/1/0 Lore% 86 Gallery% 92 Achievement% 71 Wizard Run 0 Options --------- Layout 2 ASCII 0 Keyboard 1 Movement Vi Keybinds 0 Fullscreen 2 Font 18/Cog Map View 50x49 Zoom Use 1% Tactical HUD 1 Map Filters NONE Filters NONE Steam 0 RUN: a5652160-f96d-4987-901f-0c161783efa6